lending/lending_fUSD_20240710
["ID","MTS","AMOUNT","RATE_DAILY","PERIOD"]
[331633472,1720594266473,-500.0,0.00013808,2]
[331633473,1720594266482,-1631.88,0.00013808,2]
[331633474,1720594266493,-500.0,0.00013808,2]
[331633475,1720594266502,-639.54,0.00013808,2]
[331633476,1720594266512,-573.73,0.00013808,2]
[331633477,1720594266522,-500.0,0.00013808,2]
[331633478,1720594266532,-500.0,0.00013808,2]
[331633479,1720594266541,-1590.72,0.00013808,2]
[331633480,1720594266551,-1528.2,0.00013808,2]
[331633481,1720594266560,-605.02,0.00013808,2]
[331633482,1720594266569,-1051.37,0.00013808,2]
[331633483,1720594266578,-500.0,0.00013808,2]
[331633484,1720594266587,-500.0,0.00013808,2]
[331633485,1720594266596,-500.0,0.00013808,2]
[331633486,1720594266606,-1928.69,0.00013808,2]
[331633487,1720594266615,-1016.12,0.00013808,2]
[331633488,1720594266624,-500.0,0.00013808,2]
[331633489,1720594266634,-2600.9,0.00013808,2]
[331633490,1720594266643,-500.0,0.00013808,2]
[331633491,1720594266652,-500.0,0.00013808,2]
[331633492,1720594266662,-500.0,0.00013808,2]
[331633493,1720594266671,-733.38,0.00013808,2]
[331633494,1720594266680,-868.58,0.00013808,2]
[331633495,1720594266691,-2711.24,0.00013808,2]
[331633496,1720594266701,-500.0,0.00013808,2]
[331633497,1720594266710,-500.0,0.00013808,2]
[331633498,1720594266719,-500.0,0.00013808,2]
[331633499,1720594266728,-663.0,0.00013808,2]
[331633500,1720594266737,-500.0,0.00013808,2]
[331633501,1720594266746,-939.62,0.00013808,2]
[331633502,1720594266755,-376.78821904,0.00013808,2]
[331633503,1720594266764,-1349.74,0.00013808,2]
[331633504,1720594266774,-599.82,0.00013808,2]
[331633505,1720594266784,-575.46,0.00013808,2]
[331633506,1720594266793,-1093.32,0.00013808,2]
[331633507,1720594266802,-789.59,0.00013808,2]
[331633508,1720594266811,-678.13,0.00013808,2]
[331633509,1720594266820,-500.0,0.00013808,2]
[331633510,1720594266830,-658.66,0.00013808,2]
[331633511,1720594266839,-1416.56,0.00013808,2]
[331633512,1720594266848,-500.0,0.00013808,2]
[331633513,1720594266858,-500.0,0.00013808,2]
[331633514,1720594266867,-500.0,0.00013808,2]
[331633515,1720594266876,-510.65,0.00013808,2]
[331633516,1720594266885,-500.0,0.00013808,2]
[331633517,1720594266895,-500.0,0.00013808,2]
[331633518,1720594266904,-503.1,0.00013808,2]
[331633519,1720594266913,-1055.82,0.00013808,2]
[331633520,1720594266922,-755.43,0.00013808,2]
[331633521,1720594266931,-500.0,0.00013808,2]
[331633522,1720594266943,-2599.48,0.00013808,2]
[331633523,1720594266953,-1140.28,0.00013808,2]
[331633524,1720594266963,-37.72933022,0.00013808,2]
[331633525,1720594266987,-558.64066978,0.00013808,2]
[331633526,1720594266996,-732.3,0.00013808,2]
[331633527,1720594267005,-515.78,0.00013808,2]
[331633528,1720594267014,-500.0,0.00013808,2]
[331633529,1720594267023,-500.0,0.00013808,2]
[331633530,1720594267032,-1099.34505448,0.00013808,2]
[331633532,1720594268863,-187.75243948,0.00013598,2]
[331633533,1720594268873,-386.67111144,0.00013698,2]
[331633534,1720594268925,-113.32888856,0.00013698,2]
[331633535,1720594268936,-500.0,0.00013753,2]
[331633536,1720594268946,-855.90494552,0.00013808,2]
[331633537,1720594268956,-981.32,0.00013808,2]
[331633538,1720594268966,-412.8274837,0.00013808,2]
[331633539,1720594268976,-500.0,0.00013808,2]
[331633540,1720594268985,-649.44,0.00013808,2]
[331633541,1720594268995,-1472.77,0.00013808,2]
[331633542,1720594269004,-500.0,0.00013808,2]
[331633543,1720594269013,-500.0,0.00013808,2]
[331633544,1720594269022,-576.67,0.00013808,2]
[331633545,1720594269032,-500.0,0.00013808,2]
[331633546,1720594269041,-1477.69,0.00013808,2]
[331633547,1720594269050,-500.0,0.00013808,2]
[331633548,1720594269060,-678.37,0.00013808,2]
[331633549,1720594269070,-500.0,0.00013808,2]
[331633550,1720594269079,-1578.15,0.00013808,2]
[331633551,1720594269088,-389.91719759,0.00013808,2]
[331633552,1720594269098,-654.06,0.00013808,2]
[331633553,1720594269107,-652.95,0.00013808,2]
[331633554,1720594269116,-500.0,0.00013808,2]
[331633555,1720594269125,-500.0,0.00013808,2]
[331633556,1720594269135,-500.0,0.00013808,2]
[331633557,1720594269145,-766.16,0.00013808,2]
[331633558,1720594269155,-1302.0,0.00013808,2]
[331633559,1720594269164,-2500.0,0.00013808,3]
[331633560,1720594269174,-890.5,0.00013808,2]
[331633561,1720594269183,-500.0,0.00013808,2]
[331633562,1720594269193,-525.91,0.00013808,2]
[331633563,1720594269202,-1152.23,0.00013808,2]
[331633564,1720594269211,-500.0,0.00013808,2]
[331633565,1720594269220,-984.06,0.00013808,2]
[331633566,1720594269229,-559.6,0.00013808,2]
[331633567,1720594269238,-572.5,0.00013808,2]
[331633568,1720594269247,-1648.45,0.00013808,2]
[331633569,1720594269256,-478.75455646,0.00013808,2]
[331633570,1720594269266,-1130.55,0.00013808,2]
[331633571,1720594269275,-773.92,0.00013808,2]
[331633572,1720594269285,-2015.7,0.00013808,2]
[331633573,1720594269294,-472.66333744,0.00013808,2]
[331633574,1720594269303,-1017.84,0.00013808,2]
[331633575,1720594269312,-620.76418531,0.00013808,2]
[331633576,1720594269322,-482.58441349,0.00013808,2]
[331633577,1720594269331,-500.0,0.00013808,2]
[331633578,1720594269340,-1104.98,0.00013808,2]
[331633579,1720594269349,-1025.71,0.00013808,2]
[331633580,1720594269359,-500.0,0.00013808,2]
[331633581,1720594269368,-961.0,0.00013808,2]
[331633582,1720594269378,-500.0,0.00013808,2]
[331633583,1720594269387,-500.0,0.00013808,2]
[331633584,1720594269396,-1813.75,0.00013808,2]
[331633585,1720594269407,-1030.77,0.00013808,2]
[331633586,1720594269416,-500.0,0.00013808,2]
[331633587,1720594269425,-1173.59,0.00013808,2]
[331633588,1720594269436,-500.0,0.00013808,2]
[331633589,1720594269446,-2870.9,0.00013808,2]
[331633590,1720594269456,-1984.36,0.00013808,2]
[331633591,1720594269466,-506.51,0.00013808,2]
[331633592,1720594269477,-681.62,0.00013808,2]
[331633593,1720594269487,-500.0,0.00013808,2]
[331633594,1720594269496,-500.0,0.00013808,2]
[331633595,1720594269506,-649.67,0.00013808,2]
[331633596,1720594269516,-500.0,0.00013808,2]
[331633597,1720594269526,-877.2,0.00013808,2]
[331633598,1720594269535,-880.42,0.00013808,2]
[331633599,1720594269545,-500.0,0.00013808,2]
[331633600,1720594269555,-943.48,0.00013808,2]
[331633601,1720594269564,-652.87,0.00013808,2]
[331633602,1720594269574,-892.02,0.00013808,2]
[331633603,1720594269584,-500.0,0.00013808,2]
[331633604,1720594269593,-651.31,0.00013808,2]
[331633605,1720594269603,-500.0,0.00013808,2]
[331633606,1720594269612,-500.0,0.00013808,2]
[331633607,1720594269622,-500.0,0.00013808,2]
[331633608,1720594269631,-689.23,0.00013808,2]
[331633609,1720594269640,-500.0,0.00013808,2]
[331633610,1720594269650,-1217.94,0.00013808,2]
[331633611,1720594269659,-500.0,0.00013808,2]
[331633612,1720594269668,-500.0,0.00013808,2]
[331633613,1720594269678,-500.0,0.00013808,2]
[331633614,1720594269690,-565.06,0.00013808,2]
[331633615,1720594269699,-535.59330254,0.00013808,2]
[331633616,1720594269708,-2705.68,0.00013808,2]
[331633617,1720594269717,-500.0,0.00013808,2]
[331633618,1720594269726,-500.0,0.00013808,2]
[331633619,1720594269736,-500.0,0.00013808,2]
[331633620,1720594269746,-944.1,0.00013808,2]
[331633621,1720594269755,-867.85,0.00013808,2]
[331633622,1720594269765,-602.84,0.00013808,2]
[331633623,1720594269774,-550.99,0.00013808,2]
[331633624,1720594269783,-507.05,0.00013808,2]
[331633625,1720594269792,-500.0,0.00013808,2]
[331633626,1720594269802,-500.0,0.00013808,2]
[331633627,1720594269811,-2098.67,0.00013808,2]
[331633628,1720594269820,-500.0,0.00013808,2]
[331633629,1720594269830,-500.0,0.00013808,2]
[331633630,1720594269841,-500.0,0.00013808,2]
[331633631,1720594269851,-722.3,0.00013808,2]
[331633632,1720594269863,-500.0,0.00013808,2]
[331633633,1720594269872,-500.0,0.00013808,2]
[331633634,1720594269881,-1923.62,0.00013808,2]
[331633635,1720594269891,-500.0,0.00013808,2]
[331633636,1720594269900,-1646.0,0.00013808,2]
[331633637,1720594269909,-2994.2,0.00013808,2]
[331633638,1720594269918,-702.67,0.00013808,2]
[331633639,1720594269928,-957.35,0.00013808,2]
[331633640,1720594269940,-500.0,0.00013808,2]
[331633641,1720594269950,-1070.13,0.00013808,2]
[331633642,1720594269960,-500.0,0.00013808,2]
[331633643,1720594269969,-903.17,0.00013808,2]
[331633644,1720594269978,-662.0,0.00013808,2]
[331633645,1720594269988,-2557.75,0.00013808,2]
[331633646,1720594269999,-777.19,0.00013808,2]
[331633647,1720594270009,-513.89,0.00013808,2]
[331633648,1720594270019,-879.71,0.00013808,2]
[331633649,1720594270028,-500.0,0.00013808,2]
[331633650,1720594270038,-593.45,0.00013808,2]
[331633651,1720594270047,-942.68,0.00013808,2]
[331633652,1720594270056,-680.21,0.00013808,2]
[331633653,1720594270065,-542.41,0.00013808,2]
[331633654,1720594270075,-500.0,0.00013808,2]
[331633655,1720594270085,-2000.99,0.00013808,2]
[331633656,1720594270094,-500.0,0.00013808,2]
[331633657,1720594270104,-2324.4,0.00013808,2]
[331633658,1720594270115,-500.0,0.00013808,2]
[331633659,1720594270124,-925.12,0.00013808,2]
[331633660,1720594270136,-500.0,0.00013808,2]
[331633661,1720594270146,-500.0,0.00013808,2]
[331633662,1720594270156,-787.84,0.00013808,2]
[331633663,1720594270166,-543.99,0.00013808,2]
[331633664,1720594270175,-428.65685967,0.00013808,2]
[331633665,1720594270187,-500.0,0.00013808,2]
[331633666,1720594270196,-571.03,0.00013808,2]
[331633667,1720594270206,-1263.05,0.00013808,2]
[331633668,1720594270215,-500.0,0.00013808,2]
[331633669,1720594270227,-500.0,0.00013808,2]
[331633670,1720594270236,-591.18,0.00013808,2]
[331633671,1720594270245,-2099.35,0.00013808,2]
[331633672,1720594270254,-1296.64,0.00013808,2]
[331633673,1720594270264,-1510.16,0.00013808,2]
[331633674,1720594270274,-2722.73,0.00013808,2]
[331633675,1720594270283,-508.49,0.00013808,2]
[331633676,1720594270292,-500.0,0.00013808,2]
[331633677,1720594270302,-2783.7,0.00013808,2]
[331633678,1720594270311,-500.0,0.00013808,2]
[331633679,1720594270320,-500.0,0.00013808,2]
[331633680,1720594270330,-963.63,0.00013808,2]
[331633681,1720594270340,-500.0,0.00013808,2]
[331633682,1720594270349,-1842.83,0.00013808,2]
[331633683,1720594270358,-1735.41,0.00013808,2]
[331633684,1720594270368,-500.0,0.00013808,2]
[331633685,1720594270378,-1281.91,0.00013808,2]
[331633686,1720594270387,-500.0,0.00013808,2]
[331633687,1720594270396,-500.0,0.00013808,2]
[331633688,1720594270405,-1736.53,0.00013808,2]
[331633689,1720594270415,-2290.48,0.00013808,2]
[331633690,1720594270424,-1379.07,0.00013808,2]
[331633691,1720594270433,-1027.59,0.00013808,2]
[331633692,1720594270444,-500.0,0.00013808,2]
[331633693,1720594270453,-500.0,0.00013808,2]
[331633694,1720594270462,-654.13,0.00013808,2]
[331633695,1720594270471,-849.13,0.00013808,2]
[331633696,1720594270480,-500.0,0.00013808,2]
[331633697,1720594270489,-808.21,0.00013808,2]
[331633698,1720594270498,-2388.64,0.00013808,2]
[331633699,1720594270507,-500.0,0.00013808,2]
[331633700,1720594270517,-731.18,0.00013808,2]
[331633701,1720594270526,-500.0,0.00013808,2]
[331633702,1720594270535,-500.0,0.00013808,2]
[331633703,1720594270544,-500.0,0.00013808,2]
[331633704,1720594270553,-979.96,0.00013808,2]
[331633705,1720594270562,-2347.3,0.00013808,2]
[331633706,1720594270571,-940.61,0.00013808,2]
[331633707,1720594270580,-884.37,0.00013808,2]
[331633708,1720594270590,-500.0,0.00013808,2]
[331633709,1720594270599,-566.3,0.00013808,2]
[331633710,1720594270608,-639.15,0.00013808,2]
[331633711,1720594270618,-500.0,0.00013808,2]
[331633712,1720594270627,-2612.65,0.00013808,2]
[331633713,1720594270636,-500.0,0.00013808,2]
[331633714,1720594270645,-500.0,0.00013808,2]
[331633715,1720594270654,-500.0,0.00013808,2]
[331633716,1720594270663,-1780.02,0.00013808,2]
[331633717,1720594270672,-674.68,0.00013808,2]
[331633718,1720594270681,-388.90385487,0.00013808,2]
[331633719,1720594270693,-2359.77,0.00013808,2]
[331633720,1720594270702,-500.0,0.00013808,2]
[331633721,1720594270712,-500.0,0.00013808,2]
[331633722,1720594270721,-1579.85,0.00013808,2]
[331633723,1720594270730,-500.0,0.00013808,2]
[331633724,1720594270741,-654.61,0.00013808,2]
[331633725,1720594270752,-500.0,0.00013808,2]
[331633726,1720594270763,-500.0,0.00013808,2]
[331633727,1720594270772,-500.0,0.00013808,2]
[331633728,1720594270782,-580.9019058,0.00013808,2]
[331633729,1720594270791,-1048.01,0.00013808,2]
[331633730,1720594270800,-500.0,0.00013808,2]
[331633731,1720594270808,-500.0,0.00013808,2]
[331633732,1720594270817,-500.0,0.00013808,2]
[331633733,1720594270825,-500.0,0.00013808,2]
[331633734,1720594270833,-1494.08,0.00013808,2]
[331633735,1720594270841,-736.0,0.00013808,2]
[331633736,1720594270849,-1693.71,0.00013808,2]
[331633737,1720594270857,-500.0,0.00013808,2]
[331633738,1720594270866,-1037.0,0.00013808,2]
[331633739,1720594270875,-500.0,0.00013808,2]
[331633740,1720594270885,-680.53,0.00013808,2]
[331633741,1720594270894,-500.0,0.00013808,2]
[331633742,1720594270904,-500.0,0.00013808,2]
[331633743,1720594270913,-878.16,0.00013808,2]
[331633744,1720594270923,-1667.72,0.00013808,2]
[331633745,1720594270933,-1857.8,0.00013808,2]
[331633746,1720594270944,-500.0,0.00013808,2]
[331633747,1720594270955,-500.0,0.00013808,2]
[331633748,1720594270966,-500.0,0.00013808,2]
[331633749,1720594270976,-500.0,0.00013808,2]
[331633750,1720594270985,-1953.94,0.00013808,2]
[331633751,1720594270995,-853.0,0.00013808,2]
[331633752,1720594271004,-500.0,0.00013808,2]
[331633753,1720594271014,-500.0,0.00013808,2]
[331633754,1720594271024,-758.82,0.00013808,2]
[331633755,1720594271034,-500.0,0.00013808,2]
[331633756,1720594271043,-500.0,0.00013808,2]
[331633757,1720594271053,-1802.56,0.00013808,2]
[331633758,1720594271062,-522.44,0.00013808,2]
[331633759,1720594271072,-1126.68,0.00013808,2]
[331633760,1720594271081,-500.0,0.00013808,2]
[331633761,1720594271093,-1073.26,0.00013808,2]
[331633762,1720594271104,-1057.4,0.00013808,2]
[331633763,1720594271115,-1473.77,0.00013808,2]
[331633764,1720594271124,-1822.42,0.00013808,2]
[331633765,1720594271135,-500.0,0.00013808,2]
[331633766,1720594271145,-500.0,0.00013808,2]
[331633767,1720594271154,-1131.58,0.00013808,2]
[331633768,1720594271164,-1230.93,0.00013808,2]
[331633769,1720594271174,-500.0,0.00013808,2]
[331633770,1720594271184,-500.0,0.00013808,2]
[331633771,1720594271194,-500.0,0.00013808,2]
[331633772,1720594271203,-613.06,0.00013808,2]
[331633773,1720594271213,-500.0,0.00013808,2]
[331633774,1720594271222,-1153.56,0.00013808,2]
[331633775,1720594271232,-591.5,0.00013808,2]
[331633776,1720594271243,-1599.87,0.00013808,2]
[331633777,1720594271254,-500.0,0.00013808,2]
[331633778,1720594271499,-312.95588673,0.00013808,2]
[331633779,1720594271509,-861.75,0.00013808,2]
[331633780,1720594271520,-500.0,0.00013808,2]
[331633781,1720594271529,-500.0,0.00013808,2]
[331633782,1720594271539,-661.54,0.00013808,2]
[331633783,1720594271548,-2304.22,0.00013808,2]
[331633784,1720594271557,-689.79,0.00013808,2]
[331633785,1720594271566,-1803.55,0.00013808,2]
[331633786,1720594271575,-500.0,0.00013808,2]
[331633787,1720594271584,-1071.9,0.00013808,2]
[331633788,1720594271593,-500.0,0.00013808,2]
[331633789,1720594271603,-806.36,0.00013808,2]
[331633790,1720594271612,-1130.65,0.00013808,2]
[331633791,1720594271622,-556.19,0.00013808,2]
[331633792,1720594271632,-1972.04,0.00013808,2]
[331633793,1720594271641,-500.0,0.00013808,2]
[331633794,1720594271650,-1934.03,0.00013808,2]
[331633795,1720594271661,-500.0,0.00013808,2]
[331633796,1720594271670,-1230.07,0.00013808,2]
[331633797,1720594271679,-500.0,0.00013808,2]
[331633798,1720594271691,-956.21,0.00013808,2]
[331633799,1720594271700,-697.59,0.00013808,2]
[331633800,1720594271711,-500.0,0.00013808,2]
[331633801,1720594271721,-2533.95,0.00013808,2]
[331633802,1720594271731,-500.0,0.00013808,2]
[331633803,1720594271742,-506.8,0.00013808,2]
[331633804,1720594271752,-500.0,0.00013808,2]
[331633805,1720594271765,-1412.3,0.00013808,2]
[331633806,1720594271774,-872.9083952,0.00013808,2]
[331633807,1720594272837,-500.0,0.00013698,2]
[331633808,1720594272846,-500.0,0.00013698,2]
[331633809,1720594272856,-743.41,0.00013698,2]
[331633810,1720594272865,-58.53717962,0.00013698,2]
[331633811,1720594272876,-542.39928832,0.00013698,2]
[331633812,1720594272888,-170.02353206,0.00013698,2]
[331633813,1720594272897,-500.0,0.00013753,2]
[331633814,1720594272907,-500.0,0.00013753,2]
[331633815,1720594272916,-770.96,0.00013753,2]
[331633816,1720594272925,-234.12427515,0.00013753,2]
[331633817,1720594272946,-509.28572485,0.00013753,2]
[331633818,1720594272957,-90.3716048,0.00013808,2]
[331633819,1720594272966,-2016.83,0.00013808,2]
[331633820,1720594272976,-500.0,0.00013808,2]
[331633821,1720594272986,-847.76,0.00013808,2]
[331633822,1720594272999,-430.56509038,0.00013808,2]
[331633823,1720594273012,-394.51490962,0.00013808,2]
[331633824,1720594273022,-500.0,0.00013808,2]
[331633825,1720594273032,-500.0,0.00013808,2]
[331633826,1720594273041,-952.13,0.00013808,2]
[331633827,1720594273050,-500.0,0.00013808,2]
[331633828,1720594273059,-124.86357643,0.00013808,2]
[331633829,1720594273070,-500.0,0.00013808,2]
[331633830,1720594273082,-390.67842279,0.00013808,2]
[331633831,1720594273099,-870.93800078,0.00013808,2]
[331633832,1720594273109,-337.06199922,0.00013808,2]
[331633833,1720594273132,-588.51800078,0.00013808,2]
[331633834,1720594273141,-507.59,0.00013808,2]
[331633835,1720594273150,-500.0,0.00013808,2]
[331633836,1720594273159,-781.89,0.00013808,2]
[331633837,1720594273168,-318.32525432,0.00013808,2]
[331633838,1720594273180,-181.67474568,0.00013808,2]
[331633839,1720594273192,-399.09325355,0.00013808,2]
[331633840,1720594273204,-100.90674645,0.00013808,2]
[331633841,1720594273213,-500.0,0.00013808,2]
[331633842,1720594273222,-246.90829259,0.00013808,2]
[331633843,1720594273232,-7.84297027,0.00013808,2]
[331633844,1720594273243,-551.11702973,0.00013808,2]
[331633845,1720594273252,-500.0,0.00013808,2]
[331633846,1720594273261,-437.65996103,0.00013808,2]
[331633848,1720594863055,274.78,0.00010534,2]
[331633849,1720595210844,-3539.2186,0.0001214,2]
[331633850,1720595210873,-300.0,0.0001224,2]
[331633851,1720595210901,-500.0,0.00012241,2]
[331633852,1720595210929,-500.0,0.00012241,2]
[331633853,1720595210956,-500.0,0.00012241,2]
[331633854,1720595210983,-500.0,0.00012241,2]
[331633855,1720595211012,-50000.0,0.00012241,2]
[331633856,1720595211041,-236.57,0.00012268,2]
[331633857,1720595211071,-181.14,0.00012326,2]
[331633858,1720595211101,-250.0,0.00012366,2]
[331633859,1720595211135,-1000.0,0.00012497,2]
[331633860,1720595227058,6876.2,0.0001239,2]
[331633861,1720595237993,150.00000001,0.00012132,2]
[331633867,1720595247442,2141.63460873,0.00012273,2]
[331633868,1720595253715,500.0,0.00012241,2]
[331633869,1720595253753,470.2173222,0.00012241,2]
[331633870,1720595276010,200.0,0.00012352,2]
[331633871,1720595293580,500.0,0.00012241,2]
[331633872,1720595296016,500.0,0.00012241,2]
[331633878,1720595406397,500.0,0.00012241,2]
[331633891,1720595434134,-168.18,0.00012518,2]
[331633892,1720595434145,-8777.54121335,0.00012604,2]
[331633893,1720595434155,-175.9,0.00012604,2]
[331633894,1720595434167,-1614.21,0.00012604,2]
[331633895,1720595434178,-1197.46,0.00012604,2]
[331633896,1720595434187,-615.02,0.00012604,2]
[331633897,1720595434196,-981.87,0.00012707,2]
[331633898,1720595434205,-274.78,0.00012797,2]
[331633899,1720595434215,-212.0,0.0001292,2]
[331633900,1720595434226,-867.26,0.00012941,2]
[331633901,1720595434236,-418.86,0.00012941,2]
[331633902,1720595434246,-155.40245822,0.0001299,2]
[331633903,1720595434256,-165.01,0.00013067,2]
[331633904,1720595434266,-164.99,0.00013067,2]
[331633905,1720595434276,-212.0,0.0001307,2]
[331633906,1720595434286,-528.94,0.00013078,2]
[331633907,1720595434296,-150.0,0.00013078,2]
[331633908,1720595434307,-410.73,0.00013078,2]
[331633909,1720595434318,-150.0,0.00013078,2]
[331633910,1720595434329,-150.0,0.00013078,2]
[331633911,1720595434339,-165.01,0.00013078,2]
[331633912,1720595434348,-355.12,0.00013078,2]
[331633913,1720595434358,-150.0,0.00013078,2]
[331633914,1720595434370,-150.0,0.00013078,2]
[331633915,1720595434379,-424.74,0.00013078,2]
[331633916,1720595434388,-5000.0,0.00013128,2]
[331633917,1720595434398,-462.24258694,0.00013128,2]
[331633918,1720595434408,-355.17,0.000132,2]
[331633919,1720595434418,-150.0,0.000132,2]
[331633920,1720595434428,-355.17,0.00013205,2]
[331633921,1720595434437,-355.17,0.00013205,2]
[331633922,1720595434446,-354.81,0.00013205,2]
[331633923,1720595434455,-212.0,0.0001321,2]
[331633924,1720595434464,-212.0,0.0001336,2]
[331633925,1720595434474,-150.0,0.0001337,2]
[331633926,1720595434483,-150.0,0.0001337,2]
[331633927,1720595434492,-220.57,0.00013397,3]
[331633928,1720595434501,-150.0,0.000134,2]
[331633929,1720595434511,-978.4295,0.000134,2]
[331633930,1720595434520,-2000.95639789,0.00013405,2]
[331633931,1720595434534,-321.8374382,0.00013405,2]
[331633932,1720595434543,-197.89580536,0.00013405,2]
[331633933,1720595434552,-171.95378038,0.0001341,2]
[331633934,1720595434562,-5003.42604,0.0001345,2]
[331633935,1720595434571,-2439.315983,0.00013477,2]
[331633936,1720595434581,-171.786265,0.00013477,2]
[331633937,1720595434591,-182.70747,0.00013477,2]
[331633938,1720595434600,-1142.81673,0.00013477,2]
[331633939,1720595434610,-183.066612,0.00013477,2]
[331633940,1720595434620,-3631.511541,0.00013477,2]
[331633941,1720595434629,-285.704183,0.00013477,2]
[331633942,1720595434638,-177.367033,0.00013477,2]
[331633943,1720595434647,-1033.431014,0.00013477,2]
[331633944,1720595434658,-1312.482194,0.00013477,2]
[331633945,1720595434667,-204.60641887,0.00013479,2]
[331633946,1720595434676,-150.0,0.00013479,2]
[331633947,1720595434686,-150.0,0.00013479,2]
[331633948,1720595434695,-150.0,0.00013479,2]
[331633949,1720595434705,-246.68749225,0.0001349,2]
[331633950,1720595434714,-204.60641887,0.00013495,2]
[331633951,1720595434723,-1152.07979418,0.00013499,3]
[331633952,1720595434733,-1152.07979419,0.00013499,3]
[331633953,1720595434742,-612.0,0.000135,2]
[331633954,1720595434751,-185186.10402625,0.000135,2]
[331633955,1720595434764,-315.0,0.000135,2]
[331633956,1720595434779,-1272.24,0.000135,2]
[331633957,1720595434790,-3210.85387545,0.000135,2]
[331633958,1720595434802,-447.53187127,0.000135,2]
[331633959,1720595434815,-790254.17608625,0.000135,2]
[331633960,1720595434827,-19823.31169705,0.000135,2]
[331633961,1720595434838,-9741.80218521,0.000135,2]
[331633962,1720595434850,-1381.95190557,0.000135,2]
[331633963,1720595434861,-431.18512968,0.000135,2]
[331633964,1720595434873,-860.35582076,0.000135,2]
[331633965,1720595434885,-521.97670531,0.000135,2]
[331633966,1720595434896,-1706.6260301,0.000135,2]
[331633967,1720595434908,-569.99999994,0.000135,2]
[331633968,1720595434920,-351.899999,0.000135,2]
[331633969,1720595434931,-679.83163208,0.000135,2]
[331633970,1720595434942,-11196.36953596,0.000135,2]
[331633971,1720595434953,-1024.46733529,0.000135,2]
[331633972,1720595434965,-501.23538144,0.000135,2]
[331633973,1720595434976,-2478.29101073,0.000135,2]
[331633974,1720595434987,-849.96717983,0.000135,2]
[331633975,1720595434999,-650.23905597,0.000135,2]
[331633976,1720595435010,-905.34153942,0.000135,2]
[331633977,1720595435021,-560.2023371,0.000135,2]
[331633978,1720595435032,-1339.32568212,0.000135,2]
[331633979,1720595435043,-1395.41908041,0.000135,2]
[331633980,1720595435053,-12611.04820383,0.000135,2]
[331633981,1720595435065,-7800.69533894,0.000135,2]
[331633982,1720595435075,-1062.65487109,0.000135,2]
[331633983,1720595435088,-17994.43940248,0.000135,2]
[331633984,1720595435102,-15950.86851453,0.000135,2]
[331633985,1720595435116,-474.46635641,0.000135,2]
[331633993,1720595437615,-775.64012457,0.000135,2]
[331633996,1720595437627,-7214.73959698,0.000135,2]
[331633998,1720595437638,-1145.08013776,0.000135,2]
[331634000,1720595437650,-11216.25702667,0.000135,2]
[331634002,1720595437663,-2676.10473281,0.000135,2]
[331634007,1720595437698,-584.18096118,0.000135,2]
[331634009,1720595437710,-484642.41170292,0.000135,2]
[331634012,1720595437722,-785.23100942,0.000135,2]
[331634013,1720595437733,-2662.14219701,0.000135,2]
[331634014,1720595437744,-313.27,0.000135,2]